bitfinex/quotes_ETHUSD_20260119
["timestamp","ask_amount","ask_price","bid_price","bid_amount"]
[1768849483277,0.99330391,3214.8,3214.2,0.19544152]
[1768849483956,0.99330391,3214.8,3214.2,0.001]
[1768849485567,0.99330391,3214.8,3214.2,0.19544148]
[1768849485767,0.99330391,3214.8,3214.2,0.57741436]
[1768849486194,0.99330391,3214.8,3214.3,0.19444148]
[1768849486349,1.50630391,3215.0,3214.3,0.19444148]
[1768849486548,0.99330391,3214.9,3214.3,0.19444148]
[1768849486957,0.99330391,3215.7,3214.5,0.19444147]
[1768849487161,1.50630391,3215.6,3214.7,0.19444147]
[1768849487469,0.99330391,3215.5,3214.7,3.11065445]
[1768849487650,0.99330391,3215.5,3214.8,0.19444146]
[1768849487862,0.513,3215.6,3214.8,0.19444146]
[1768849488058,4.61617819,3215.6,3215.0,0.19444146]
[1768849493594,4.10317819,3215.6,3215.0,0.19444146]
[1768849495401,0.002,3215.3,3215.0,0.19444146]
[1768849501004,0.002,3215.6,3214.8,5.80451047]
[1768849501307,0.002,3215.6,3215.1,0.19444133]
[1768849501504,0.002,3215.6,3215.2,0.19444133]
[1768849501695,0.96941656,3215.5,3214.7,0.19444133]
[1768849502013,0.96941656,3215.5,3214.8,4.0]
[1768849504576,3.11003296,3215.4,3214.7,3.3051414]
[1768849504775,0.96941656,3215.3,3214.7,3.3051414]
[1768849504977,0.96941656,3215.3,3214.8,0.39050366]
[1768849506073,0.96941656,3215.3,3214.8,0.58494495]
[1768849506277,0.96941656,3215.3,3214.8,0.39050366]
[1768849506495,0.96941656,3215.2,3214.6,1.30733648]
[1768849507404,0.96941656,3215.2,3214.6,4.41813]
[1768849508297,0.96941656,3215.2,3214.9,0.001]
[1768849517014,0.002,3215.3,3214.9,0.19544121]
[1768849517514,0.002,3215.3,3215.1,0.19444121]
[1768849517713,0.002,3215.6,3215.1,0.19444121]
[1768849517919,0.002,3215.6,3215.2,0.19444121]
[1768849518120,3.10941934,3216.1,3215.3,0.19444121]
[1768849518417,3.10941934,3216.1,3215.4,0.1944412]
[1768849518617,1.48241656,3216.2,3215.4,0.1944412]
[1768849519150,0.96941656,3216.2,3215.5,0.19444119]
[1768849520194,0.002,3215.6,3215.5,3.10984273]
[1768849520401,0.96941656,3216.2,3215.6,0.19444119]
[1768849520591,0.96941656,3216.2,3215.7,0.19444119]
[1768849523016,0.96941656,3216.2,3215.7,3.10969795]
[1768849523216,0.96941656,3216.2,3215.8,0.19444116]
[1768849523789,0.00080072,3216.4,3215.8,0.19444116]
[1768849524830,0.00080072,3216.4,3215.9,0.19444116]
[1768849525229,0.00080072,3216.4,3216.0,0.19444115]
[1768849525446,0.00080072,3216.4,3216.2,0.19444115]
[1768849525626,0.98178572,3216.8,3216.2,0.19364043]
[1768849525943,0.00080072,3216.8,3216.3,0.19364043]
[1768849527743,0.00080072,3216.8,3216.5,0.19364042]
[1768849529943,0.00080096,3217.0,3216.6,0.19364041]
[1768849530150,0.00080096,3217.0,3216.8,0.19364041]
[1768849532156,0.98178956,3217.3,3216.8,0.19364041]
[1768849533069,0.98178956,3217.3,3216.9,0.19364039]
[1768849534050,0.980985,3217.2,3216.6,0.51380104]
[1768849534774,0.980985,3217.2,3216.7,4.0]
[1768849534935,0.980985,3217.2,3216.7,4.47074414]
[1768849535336,0.980985,3217.2,3216.4,3.10981904]
[1768849535337,0.980985,3217.1,3216.4,0.0008008]
[1768849535544,0.980985,3216.9,3216.4,0.0008008]
[1768849536059,0.980985,3216.7,3216.4,0.0008008]
[1768849547586,0.92986938,3216.8,3216.4,0.19444111]
[1768849550399,0.92986938,3216.8,3216.4,0.0008008]
[1768849550563,3.10869751,3216.8,3216.4,0.0008008]
[1768849550763,0.92986938,3216.7,3216.4,0.0008008]
[1768849555280,0.94496221,3216.9,3216.4,0.0008008]
[1768849557399,0.94496221,3216.8,3216.4,0.0008008]
[1768849558169,0.94496221,3216.7,3216.4,0.0008008]
[1768849558411,0.94496221,3216.7,3216.0,0.5138008]
[1768849559803,0.94496221,3216.6,3216.0,0.5138008]
[1768849561514,0.94496221,3216.6,3216.0,0.0008008]
[1768849561670,0.94496221,3216.1,3215.7,4.0]
[1768849561869,0.94496221,3216.0,3215.7,4.0]
[1768849562583,0.94496221,3216.0,3215.5,0.513]
[1768849564821,0.94496221,3215.9,3215.5,0.513]
[1768849568020,0.94496221,3215.9,3215.8,0.001]
[1768849572332,0.94496221,3216.2,3215.8,0.001]
[1768849572712,3.10924882,3216.3,3215.8,0.195441]
[1768849573029,4.56787408,3216.4,3215.8,0.195441]
[1768849573635,0.94496221,3216.3,3215.8,0.195441]
[1768849573796,0.0008008,3216.4,3216.0,0.194441]
[1768849575005,0.0008008,3216.4,3216.0,3.10941668]
[1768849575342,0.0008008,3216.4,3216.1,0.19444099]
[1768849577236,0.0008008,3216.4,3215.9,0.513]
[1768849577435,0.0008008,3216.4,3215.9,1.64980466]
[1768849577857,0.0008008,3216.4,3216.0,0.19444099]
[1768849579553,0.002,3216.1,3216.0,0.19444099]
[1768849579760,0.0028008,3216.4,3216.0,0.19444099]
[1768849585329,0.0028008,3216.4,3216.0,3.10944636]
[1768849585535,0.0028008,3216.4,3216.1,0.65092196]
[1768849585941,0.0028008,3216.4,3216.1,0.456481]
[1768849586140,0.0028008,3216.4,3216.2,0.19444096]
[1768849587426,0.98695564,3216.7,3216.2,0.19444096]
[1768849588033,0.98695564,3216.6,3216.2,0.19444096]
[1768849588232,0.98695564,3216.6,3216.0,0.19524183]
[1768849588467,0.98695564,3216.6,3216.1,0.16506055]
[1768849588642,0.98695564,3216.6,3216.1,0.3595015]
[1768849589066,0.98695564,3216.6,3216.2,0.19444095]
[1768849589226,0.0008008,3216.8,3216.2,0.19444095]
[1768849589227,0.98775644,3216.8,3216.2,0.19444095]
[1768849589564,0.98775644,3216.8,3216.3,5.80002883]
[1768849589765,0.98775644,3216.8,3216.4,0.58000288]
[1768849590058,0.98775644,3216.8,3216.3,0.513]
[1768849590763,0.98695564,3216.7,3216.3,0.513]
[1768849590941,0.002,3216.5,3216.3,0.513]
[1768849591262,0.98895564,3216.5,3216.3,0.513]
[1768849591670,0.002,3216.5,3216.3,0.513]
[1768849591832,0.002,3216.5,3216.4,0.36222478]
[1768849593232,0.002,3216.5,3216.3,0.513]
[1768849593730,0.98895564,3216.5,3216.1,0.16506055]
[1768849593953,0.98895564,3216.5,3216.0,0.00080088]
[1768849595264,0.98695564,3216.4,3216.0,0.00080088]
[1768849595561,0.98775652,3216.4,3215.3,3.30536136]
[1768849595730,0.98775652,3216.4,3215.8,4.001]
[1768849595926,0.98695564,3216.2,3215.8,4.001]
[1768849596161,0.98695564,3216.2,3215.8,0.001]
[1768849597645,0.98695564,3216.1,3215.8,0.001]
[1768849603775,3.10935706,3216.1,3215.8,0.001]
[1768849604076,0.92020889,3216.0,3215.8,0.001]
[1768849605677,0.92020889,3215.9,3215.8,0.001]
[1768849608068,0.92020889,3216.1,3215.8,0.001]
[1768849611393,0.92020889,3216.2,3215.8,0.001]
[1768849614788,3.10921594,3216.3,3215.8,0.19624176]
[1768849615297,4.08162744,3216.3,3215.8,0.19624176]
[1768849615868,0.9724115,3216.2,3215.8,0.19624176]
[1768849622181,3.10916728,3216.3,3215.8,0.19624176]
[1768849622378,0.00080088,3216.4,3215.9,0.19524175]
[1768849622687,0.0028008,3216.8,3216.2,0.19524175]
[1768849622999,0.0028008,3216.8,3216.4,0.19524175]
[1768849625603,0.002,3216.5,3216.4,0.19524175]
[1768849625772,0.0028008,3216.8,3216.4,0.19524175]
[1768849625972,0.0028008,3216.8,3216.4,0.52807401]
[1768849629493,0.00080456,3217.3,3216.6,5.99761877]
[1768849629685,0.97321606,3217.3,3216.7,0.19524173]
[1768849630187,0.9724115,3217.2,3216.7,0.19524173]
[1768849631809,0.9724115,3217.2,3216.8,0.19524173]
[1768849632004,0.9724115,3217.2,3216.9,0.33039935]
[1768849632373,0.97321606,3217.3,3216.9,0.33039935]
[1768849633317,0.9724115,3217.1,3216.4,0.00080088]
[1768849633471,0.9724115,3216.5,3215.8,0.001]
[1768849633671,0.9724115,3216.5,3215.9,0.90374733]
[1768849634071,0.9724115,3216.5,3215.9,4.01328222]
[1768849635496,0.9724115,3216.5,3215.9,0.90374733]
[1768849636610,0.9724115,3216.5,3215.9,4.01327303]
[1768849637230,0.9724115,3216.5,3216.3,0.001]
[1768849637509,0.9744115,3216.5,3216.3,0.001]
[1768849643688,0.002,3216.5,3216.3,0.001]
[1768849644110,1.43580784,3216.8,3216.3,0.9229656]
[1768849644381,0.92280784,3216.8,3216.3,0.9229656]
[1768849644516,0.92280784,3216.8,3216.4,0.9219656]
[1768849644517,0.00280088,3216.8,3216.4,0.9219656]
[1768849644693,0.00280088,3216.8,3216.5,0.9219656]
[1768849657838,0.00280088,3216.8,3216.4,0.9219656]
[1768849661847,0.00080088,3216.8,3216.4,0.9219656]
[1768849662047,0.00080088,3216.8,3216.4,0.92276656]
[1768849662648,0.00080088,3216.8,3216.5,0.96823535]
[1768849662851,0.92080808,3217.0,3216.5,1.37614536]
[1768849665363,0.92080808,3217.0,3216.5,0.96823535]
[1768849673865,0.002,3216.7,3216.5,0.96823535]
[1768849674066,0.92280808,3217.0,3216.5,0.96823535]
[1768849674365,0.79226553,3217.2,3216.6,0.95650089]
[1768849675078,0.76504178,3217.2,3216.6,0.95650089]
[1768849675235,0.76504178,3217.2,3216.7,0.71744263]
[1768849675437,0.51380456,3217.3,3216.8,0.95569969]
[1768849675438,0.00080456,3217.3,3216.8,0.95569969]
[1768849675632,0.00080456,3217.3,3217.2,0.02392489]
[1768849675875,0.95170527,3217.5,3217.2,0.02392489]
[1768849679368,1.46750943,3217.6,3217.2,0.02392489]
[1768849679556,0.95170527,3217.5,3217.2,0.02392489]
[1768849686183,0.51580416,3217.6,3217.2,0.97962458]
[1768849686482,0.002,3217.5,3217.2,0.97962458]
[1768849686679,1.46750943,3217.6,3217.2,0.02392489]
[1768849687251,0.95170527,3217.5,3217.2,0.02392489]
[1768849690983,0.51580416,3217.6,3217.2,0.97962458]
[1768849691165,0.51580416,3217.6,3217.2,0.95569969]
[1768849691686,1.46750943,3217.6,3217.1,0.95569969]
[1768849692452,0.95170527,3217.5,3216.9,0.95650433]
[1768849695895,0.95250879,3217.9,3217.3,0.95569969]
[1768849698409,0.95250879,3217.9,3217.5,0.001]
[1768849698599,0.95250879,3217.9,3217.5,0.95669969]
[1768849700511,0.95250879,3217.9,3217.5,1.36318258]
[1768849701491,0.95250879,3217.9,3217.5,4.47118159]
[1768849703115,0.00080352,3217.9,3217.6,0.97299698]
[1768849703486,0.00080352,3217.9,3217.5,3.5154819]
[1768849704728,0.00080352,3217.9,3217.5,5.00147888]
[1768849705023,0.00080352,3217.9,3217.6,0.97299698]
[1768849705314,0.002,3218.1,3217.7,0.97299698]
[1768849706116,1.00120301,3218.1,3217.7,0.97299698]
[1768849707199,1.00120301,3218.1,3217.7,4.08080524]
[1768849707431,1.00120301,3218.1,3217.6,4.58097236]
[1768849707723,1.00120301,3218.1,3217.7,0.86102541]
[1768849708182,1.00120301,3218.1,3217.7,1.83402239]
[1768849708780,1.00120301,3218.1,3217.7,0.86102541]
[1768849709131,1.00120301,3218.1,3217.7,0.97299698]
[1768849709282,1.00120301,3218.1,3217.5,1.48780058]
[1768849709478,0.49820301,3218.0,3217.6,0.513]
[1768849709689,0.002,3217.8,3217.6,0.513]
[1768849709915,0.99812675,3217.8,3217.6,0.513]
[1768849710417,0.99812675,3217.8,3217.5,0.0018036]
[1768849712522,0.50100001,3217.7,3217.5,0.0018036]
[1768849717232,0.49512675,3217.6,3217.5,0.0018036]
[1768849718292,0.50100001,3217.7,3217.5,0.0018036]
[1768849719293,0.99612676,3217.7,3217.5,0.0018036]
[1768849720732,0.50100001,3217.7,3217.5,0.0018036]
[1768849725933,2e-08,3217.8,3217.6,0.98655681]
[1768849726107,2e-08,3217.8,3217.7,0.02591433]
[1768849735446,0.49512676,3217.8,3217.7,0.02591433]
[1768849736133,2e-08,3217.8,3217.7,0.02591433]
[1768849740547,2e-08,3217.8,3217.5,0.91814207]
[1768849740764,0.49512675,3217.8,3217.5,0.0018036]
[1768849742341,2e-08,3217.8,3217.5,0.0018036]
[1768849743466,2e-08,3217.8,3217.6,0.91633847]
[1768849747831,2e-08,3217.8,3217.5,0.91814207]
[1768849751341,2e-08,3217.8,3217.6,0.91633847]
[1768849752670,2e-08,3217.8,3217.7,0.91633847]
[1768849754361,2e-08,3218.1,3217.7,0.91633847]
[1768849754584,2e-08,3218.1,3217.9,0.91633847]
[1768849755632,2e-08,3218.1,3217.8,0.513]
[1768849755834,2e-08,3218.1,3217.9,0.91633847]
[1768849759475,2e-08,3218.1,3217.8,0.513]
[1768849759678,2e-08,3218.1,3217.5,0.91814207]
[1768849759978,2e-08,3218.1,3217.6,0.513]
[1768849760180,0.49712673,3218.0,3217.6,0.513]
[1768849761546,0.49712673,3218.0,3217.5,1.43114207]
[1768849765493,0.49712673,3218.0,3217.6,0.92424806]
[1768849766181,0.49712674,3218.1,3217.6,0.92424806]
[1768849766855,0.49712674,3218.1,3217.8,0.001]
[1768849776597,3.6045519,3218.1,3217.8,0.001]
[1768849786004,3.10732707,3218.2,3217.8,0.001]
[1768849786172,0.31101304,3218.1,3217.8,0.001]
[1768849787670,3.41845828,3218.1,3217.8,0.001]
[1768849791174,0.31101304,3218.1,3217.8,0.001]
[1768849791369,3.10737399,3218.2,3217.8,0.94007043]
[1768849793804,3.11003388,3218.3,3217.8,0.94007043]
[1768849795277,6.21726871,3218.3,3217.8,0.94007043]
[1768849796412,0.00280336,3218.3,3217.8,0.94007043]
[1768849800780,0.00280336,3218.3,3217.8,0.001]
[1768849801012,0.62449118,3218.3,3217.8,0.001]
[1768849801682,3.10732707,3218.2,3217.7,0.94445201]
[1768849802110,3.10732707,3218.2,3217.5,0.94625561]
[1768849803382,6.21465414,3218.2,3217.5,0.94625561]
[1768849813343,6.21465414,3218.2,3217.8,0.001]
[1768849813528,0.002,3217.9,3217.8,0.001]
[1768849813890,3.10937036,3218.2,3217.9,0.94445201]
[1768849816735,0.002,3218.2,3217.9,0.94445201]
[1768849821936,0.002,3218.2,3217.9,0.93745201]
[1768849823333,0.002,3218.2,3217.9,0.93445201]
[1768849823532,0.002,3218.2,3217.9,0.93345201]
[1768849825634,3.10932707,3218.2,3217.9,0.93345201]
[1768849829850,3.47291571,3218.2,3217.9,0.93345201]
[1768849830252,6.58024278,3218.2,3217.8,0.001]
[1768849831129,7.52669478,3218.2,3217.8,0.001]
[1768849832653,4.41936771,3218.2,3217.8,0.001]
[1768849833750,7.52669478,3218.2,3217.8,0.001]
[1768849834057,0.75294981,3218.1,3217.8,0.001]
[1768849837059,3.10752019,3218.0,3217.8,0.001]
[1768849837761,3.10752019,3218.0,3217.5,0.0018036]
[1768849837762,0.99940142,3217.9,3217.5,0.0018036]
[1768849838324,1.00140142,3217.9,3217.5,0.0018036]
[1768849838527,1.30134971,3217.8,3217.5,0.0018036]
[1768849839362,3.10780992,3217.7,3217.5,0.0018036]
[1768849841258,4.40910467,3217.8,3217.5,0.0018036]
[1768849842634,5.36023407,3217.8,3217.5,0.0018036]
[1768849846435,8.46798903,3217.8,3217.5,0.0018036]
[1768849846633,0.8469989,3217.7,3217.5,0.0018036]
[1768849846870,0.9511294,3217.7,3217.2,0.00080424]
[1768849847436,0.9511294,3217.5,3217.2,0.00080424]
[1768849847750,0.9511294,3217.5,3216.9,0.00080464]
[1768849848679,0.9511294,3217.5,3216.9,0.99410115]
[1768849850692,4.0592291,3217.4,3217.2,0.001]
[1768849850892,0.71672835,3217.3,3217.2,0.001]
[1768849851794,3.82492466,3217.3,3217.2,0.001]
[1768849852589,3.8257293,3217.3,3216.9,0.99210115]
[1768849853993,6.93392561,3217.3,3216.9,0.99210115]
[1768849854196,0.7885055,3217.2,3216.9,0.99210115]
[1768849854796,0.7885055,3217.2,3216.7,0.98764347]
[1768849856098,3.89687815,3217.2,3216.7,0.98764347]
[1768849859476,3.10837265,3217.2,3216.7,0.98764347]
[1768849861273,7.16515618,3217.2,3216.7,0.98764347]
[1768849861469,6.21719726,3217.3,3216.7,0.98764347]
[1768849862282,7.16560814,3217.3,3216.7,0.98764347]
[1768849863670,0.94841088,3217.2,3216.7,0.98764347]
[1768849864072,0.002,3217.0,3216.7,0.98764347]
[1768849864297,0.002,3217.0,3216.6,0.0008012]
[1768849864674,0.002,3217.0,3216.6,0.98844467]
[1768849867008,0.002,3217.0,3216.4,0.00080096]
[1768849867009,0.94841088,3216.8,3216.4,0.00080096]
[1768849867315,7.16596302,3216.7,3216.4,0.00080096]
[1768849867810,4.05718695,3216.7,3216.4,0.00080096]
[1768849869210,0.94841088,3216.6,3216.4,0.00080096]
[1768849869506,4.77396088,3216.6,3216.4,0.00080096]
[1768849870074,3.82555,3216.6,3216.4,0.00080096]
[1768849878314,3.10896252,3216.6,3216.4,0.00080096]
[1768849879818,7.16633592,3216.6,3216.4,0.00080096]
[1768849880719,4.0573734,3216.6,3216.4,0.00080096]
[1768849881015,3.10896252,3216.6,3216.4,0.00080096]
[1768849881217,0.94841088,3216.5,3216.0,0.98844443]
[1768849881618,3.8255804,3216.6,3216.0,0.98844443]
[1768849881821,3.10896252,3216.6,3216.0,0.98844443]
[1768849882921,0.00080096,3216.8,3216.3,0.9046822]
[1768849885238,0.00080096,3216.8,3216.3,4.01382796]
[1768849885395,0.00080096,3216.8,3216.5,0.9046822]
[1768849887531,3.11101496,3217.3,3216.6,0.90548348]
[1768849887822,3.11101496,3217.3,3216.8,0.9046822]
[1768849888602,0.00280464,3217.3,3216.8,0.9046822]
[1768849890590,6.21919726,3217.3,3216.8,0.9046822]
[1768849891200,7.12992561,3217.3,3216.8,0.9046822]
[1768849891400,4.0217293,3217.3,3216.8,0.9046822]
[1768849891841,0.00280464,3217.3,3216.8,0.9046822]
[1768849895638,0.00280464,3217.3,3216.9,0.9046822]
[1768849896611,0.00280464,3217.3,3216.9,3.10856507]
[1768849896845,0.00280464,3217.3,3217.0,0.9046822]
[1768849904349,0.00280464,3217.3,3217.1,0.90439172]
[1768849908234,0.00280464,3217.3,3216.7,3.10870443]
[1768849908235,0.99820278,3217.3,3216.7,3.10870443]
[1768849908443,0.99820278,3217.3,3216.8,0.40138974]
[1768849909748,0.99820278,3217.3,3216.7,4.01311596]
[1768849910759,0.99820278,3217.3,3216.8,0.90439172]
[1768849911756,0.002,3217.0,3216.8,0.90439172]
[1768849911930,0.99820278,3217.3,3216.8,0.90439172]
[1768849913758,0.99820278,3217.3,3216.8,3.10863367]
[1768849913930,0.99820278,3217.3,3216.9,1.61088208]
[1768849915131,0.00280464,3217.3,3217.0,0.98914629]
[1768849915546,0.00080424,3217.6,3217.0,0.98914629]
[1768849916156,0.00080424,3217.6,3217.1,0.98914629]
[1768849917637,0.002,3217.7,3217.1,0.98914629]
[1768849917936,0.002,3217.7,3217.3,0.98914629]
[1768849918939,0.002,3217.7,3217.4,0.98914629]
[1768849919134,0.0028036,3217.9,3217.5,0.98914629]
[1768849920148,0.002,3218.0,3217.5,0.98914629]
[1768849920352,0.002,3218.0,3217.5,0.98994997]
[1768849921845,0.002,3218.0,3217.7,0.98914629]
[1768849923678,0.002,3217.9,3217.7,0.98914629]
[1768849923878,0.002,3218.0,3217.7,1.38162723]
[1768849924179,0.002,3218.1,3217.7,4.48940529]
[1768849925076,0.002,3218.1,3217.9,0.98914629]
[1768849925285,0.002,3218.2,3217.9,0.98914629]
[1768849925780,0.00280336,3218.3,3218.0,0.98914629]
[1768849926078,1.00196669,3218.6,3218.0,0.98914629]
[1768849926272,1.00196669,3218.6,3218.1,0.98914629]
[1768849926671,0.002,3218.6,3218.3,0.98914629]
[1768849926851,0.0028028,3218.8,3218.3,0.98914629]
[1768849927297,0.0028028,3218.8,3218.6,0.02571526]
[1768849928580,0.0028028,3218.8,3218.6,1.01486155]
[1768849928783,0.0028028,3218.8,3218.7,0.98914629]
[1768849929158,0.0028028,3218.8,3218.7,1.45263498]
[1768849929487,0.00080192,3219.1,3218.7,1.45263498]
[1768849929662,0.99996669,3219.0,3218.6,0.53871526]
[1768849931182,4.10654617,3219.0,3218.6,0.02571526]
[1768849931486,4.10654617,3219.0,3218.7,0.513]
[1768849934184,0.99996669,3219.0,3218.7,0.513]
[1768849935679,1.00196669,3219.0,3218.7,0.513]
[1768849938606,4.10855867,3219.0,3218.6,1.01486155]
[1768849938790,4.10855867,3219.0,3218.7,0.513]
[1768849939192,1.00196669,3219.0,3218.7,0.513]
[1768849940193,0.002,3219.0,3218.7,0.513]
[1768849942803,0.002,3219.0,3218.8,0.98914629]
[1768849943304,0.002,3219.0,3218.9,0.46089868]
[1768849943704,0.00080192,3219.1,3218.9,0.46089868]
[1768849944591,0.90379506,3219.1,3218.7,0.513]
[1768849945890,0.90379506,3219.1,3218.7,3.6198219]
[1768849946276,0.90379506,3219.1,3218.7,4.59476343]
[1768849947583,0.002,3218.8,3218.7,4.59476343]
[1768849947779,0.90379506,3219.1,3218.7,4.59476343]
[1768849948105,0.00280192,3219.1,3218.8,0.46204787]
[1768849950479,0.00280192,3219.1,3218.7,1.48794153]
[1768849952938,0.90579506,3219.1,3218.7,1.48794153]
[1768849954427,0.90579506,3219.1,3218.7,0.513]
[1768849959431,0.002,3218.8,3218.7,0.513]
[1768849959647,0.90299314,3219.0,3218.4,0.00080288]
[1768849959933,0.90299314,3218.9,3218.7,0.513]
[1768849966197,0.90299314,3218.9,3218.6,0.513]
[1768849967013,0.94885781,3219.1,3218.6,0.97001293]
[1768849967341,0.94885781,3219.1,3218.6,4.07692155]
[1768849967927,0.94885781,3219.1,3218.6,5.02615716]
[1768849968136,0.94885781,3219.1,3218.7,0.94923561]
[1768849968449,0.00280192,3219.1,3218.7,0.94923561]
[1768849968608,0.00280192,3219.1,3218.8,1.26413338]
[1768849971646,0.00280192,3219.1,3218.9,0.94923561]
[1768849971818,0.94605589,3220.1,3219.1,0.94923561]
[1768849973512,0.99879028,3219.9,3219.1,0.94923561]
[1768849974218,0.99879028,3219.9,3219.2,0.97685242]
[1768849976047,0.99879028,3219.8,3219.2,0.97685242]
[1768849977533,4.10454839,3219.9,3219.2,0.97685242]
[1768849977872,0.99879028,3219.8,3219.2,0.97685242]
[1768849979082,0.002,3220.3,3219.6,0.97685242]
[1768849979246,0.99879028,3220.2,3219.7,1.13473579]
[1768849979578,0.99879028,3220.2,3219.6,0.513]
[1768849979929,0.99879028,3220.1,3219.6,0.513]
[1768849980329,0.99879028,3220.1,3219.6,1.48985242]
[1768849980559,0.99879028,3220.1,3219.7,0.97685242]
[1768849980758,3.10735929,3220.3,3219.7,0.97685242]
[1768849980759,1.00079028,3220.3,3219.7,0.97685242]
[1768849980960,0.002,3220.3,3219.7,0.97685242]
[1768849981537,1.00079028,3220.3,3219.8,0.513]
[1768849981759,0.99879028,3220.2,3219.8,0.513]
[1768849982262,0.99879028,3220.2,3219.8,1.48985242]
[1768849982476,0.002,3219.9,3219.8,1.48985242]
[1768849984438,0.002,3219.9,3219.8,0.97685242]
[1768849988956,1.00079028,3219.9,3219.4,3.10609874]
[1768849989170,1.00079028,3219.9,3219.5,7.61805545]
[1768849989482,0.002,3219.9,3219.6,0.97685242]
[1768850003183,0.99879028,3220.1,3219.6,0.97685242]
[1768850003358,0.84379028,3220.1,3219.6,0.97685242]
[1768850012163,0.97403403,3220.2,3219.7,0.99985841]
[1768850012364,0.97403403,3220.2,3219.8,1.4104417]
[1768850013291,0.97403403,3220.2,3219.8,0.41058329]
[1768850013587,0.97403403,3220.2,3219.6,4.10576089]
[1768850013800,0.97403403,3220.2,3219.7,3.10587803]
[1768850014795,0.97403403,3220.2,3219.7,4.10573644]
[1768850015970,0.002,3220.2,3219.8,0.99985841]
[1768850016168,0.97203403,3220.6,3219.9,1.51185841]
[1768850016517,3.92306312,3220.6,3220.0,0.99985841]
[1768850016663,0.97203403,3220.5,3220.0,0.99985841]
[1768850018200,0.002,3220.2,3220.0,0.99985841]
[1768850019073,0.97203403,3220.5,3220.0,0.99985841]
[1768850027605,0.97203403,3220.5,3219.9,0.512]
[1768850029078,0.97203403,3220.5,3219.9,1.43085435]
[1768850029717,0.97203403,3220.5,3220.2,0.001]
[1768850030382,0.95014624,3220.4,3219.4,1.54009324]
[1768850030580,0.95014624,3220.4,3219.4,4.02499488]
[1768850030914,0.95014624,3220.3,3219.3,4.02506417]
[1768850031113,0.95014624,3220.3,3219.1,0.91885435]
[1768850031282,0.95014624,3220.3,3219.6,3.0]
[1768850031695,0.95014624,3220.1,3219.6,3.0]
[1768850032211,0.95014624,3220.0,3219.3,4.02511816]
[1768850034107,0.95014624,3220.0,3219.4,3.10615809]
[1768850035014,0.95014624,3220.0,3219.4,4.04330724]
[1768850035214,0.95014624,3220.0,3219.5,0.93714915]
[1768850039941,0.95014624,3220.0,3219.6,0.93714915]
[1768850040592,0.95014624,3220.0,3219.7,4.0]
[1768850042116,0.95214624,3220.0,3219.7,4.0]
[1768850051535,0.99136045,3219.9,3219.7,3.92021985]
[1768850054451,0.99136045,3219.8,3219.6,0.001]
[1768850054969,0.99136045,3219.8,3219.1,0.93714915]
[1768850056319,0.99136045,3219.8,3218.9,3.1066229]
[1768850056513,0.99136045,3219.6,3219.0,4.93714915]
[1768850057637,0.99136045,3219.5,3219.0,4.0]
[1768850058527,3.10607308,3219.5,3219.0,4.0]
[1768850058730,0.99136045,3219.4,3219.0,4.0]
[1768850060158,0.99136045,3219.4,3218.9,0.93714915]
[1768850060647,0.99136045,3219.4,3218.7,4.55679524]
[1768850060851,0.99136045,3219.4,3218.8,4.0]
[1768850061146,0.99136045,3219.4,3218.8,4.93714915]
[1768850061334,0.99136045,3219.3,3218.8,4.0]
[1768850061828,0.99136045,3219.3,3218.8,4.93714915]
[1768850062525,0.99136045,3219.2,3218.8,4.0]
[1768850063756,0.99136045,3219.2,3218.8,4.98940069]
[1768850063921,4.01652898,3219.5,3218.9,0.98940069]
[1768850064124,3.10609645,3219.5,3218.9,0.98940069]
[1768850064437,4.01652898,3219.5,3218.9,0.98940069]
[1768850065523,4.01652898,3219.5,3219.1,0.001]
[1768850065822,0.4016529,3219.4,3219.1,0.001]
[1768850069986,3.50783771,3219.4,3219.1,0.001]
[1768850070164,4.41827024,3219.4,3219.1,0.001]
[1768850071858,1.31208543,3219.4,3219.1,0.001]
[1768850072451,0.002,3220.0,3219.4,0.98940069]
[1768850072631,0.002,3220.0,3219.7,0.98940069]
[1768850073560,3.10507022,3220.6,3219.4,0.98940069]
[1768850073561,3.61811351,3220.5,3219.4,0.98940069]
[1768850073762,3.61811351,3220.5,3219.7,0.98940069]
[1768850073970,4.52854604,3220.5,3219.7,0.98940069]
[1768850075346,4.52854604,3220.5,3219.8,0.98940069]
[1768850077068,0.002,3220.2,3219.8,0.98940069]
[1768850077368,0.002,3220.2,3219.9,0.98940069]
[1768850079158,0.002,3220.2,3219.9,4.98940069]
[1768850079665,0.002,3220.2,3220.0,0.98940069]
[1768850082272,0.002,3220.2,3219.8,1.75525708]
[1768850082869,0.002,3220.2,3219.9,4.0]
[1768850083867,6.19339206,3220.2,3219.2,0.94571942]
[1768850084075,5.79132936,3220.2,3219.3,1.45771942]
[1768850084366,0.513,3220.1,3219.3,0.94571942]
[1768850088260,3.10559006,3220.0,3219.1,4.05314412]
[1768850088464,4.35713341,3220.0,3219.2,4.0]
[1768850088670,4.35713341,3220.0,3219.3,0.94571942]
[1768850089389,4.35713341,3220.0,3219.6,0.001]
[1768850091897,5.79132936,3220.2,3219.7,0.94571942]
[1768850091898,0.002,3220.2,3219.7,0.94571942]
[1768850092258,3.10740633,3220.2,3219.7,0.94571942]
[1768850092659,0.002,3220.2,3219.7,0.94571942]
[1768850099560,0.002,3220.2,3219.8,0.91935748]
[1768850100588,0.002,3220.2,3219.9,0.91935748]
[1768850100892,0.002,3220.2,3220.0,0.91935748]
[1768850101605,0.002,3220.2,3220.0,0.92035748]
[1768850103089,3.6176538,3221.0,3220.1,0.91935748]
[1768850104602,3.6176538,3221.0,3220.2,0.91935748]
[1768850104815,0.004,3220.9,3220.2,0.91935748]
[1768850105102,3.6176538,3221.0,3220.3,0.91935748]
[1768850105878,3.61766077,3221.0,3220.3,0.91935748]
[1768850106085,3.61766077,3221.0,3220.4,0.91935748]
[1768850106771,0.08228248,3220.9,3220.3,4.0]
[1768850106988,3.61766077,3221.0,3220.4,0.91935748]
[1768850107197,0.68044931,3220.9,3220.4,0.91935748]
[1768850107392,3.61766077,3221.0,3220.4,0.91935748]
[1768850109008,0.513,3221.0,3220.4,0.91935748]
[1768850109177,3.61765029,3221.0,3220.4,0.91935748]
[1768850109380,0.513,3221.0,3220.4,0.91935748]
[1768850109685,3.61764866,3221.0,3220.4,0.91935748]
[1768850110045,5.78932936,3220.6,3220.0,0.001]
[1768850110311,0.08228248,3220.5,3220.0,4.001]
[1768850110891,0.08228248,3220.3,3220.0,4.001]
[1768850111409,0.08228248,3220.3,3219.7,0.91935748]